bitfinex/quotes_SOLUSD_20251218
["timestamp","ask_amount","ask_price","bid_price","bid_amount"]
[1766082135322,7.01078503,123.62,123.55,7.11078503]
[1766082135520,0.71,123.6,123.55,8.19360615]
[1766082135835,0.71,123.59,123.55,0.1]
[1766082136745,0.71,123.59,123.55,8.19384119]
[1766082137039,0.71,123.59,123.55,0.1]
[1766082137240,0.71,123.58,123.55,0.1]
[1766082137615,7.72078503,123.57,123.55,0.1]
[1766082137841,0.71,123.55,123.5,8.29651476]
[1766082138740,0.71,123.55,123.5,0.2]
[1766082138915,0.71,123.54,123.5,0.1]
[1766082139541,0.71,123.52,123.5,0.1]
[1766082139927,7.72078503,123.52,123.5,0.1]
[1766082140126,0.71,123.51,123.46,8.86]
[1766082140333,0.71,123.51,123.45,0.1]
[1766082140510,0.71,123.49,123.45,0.1]
[1766082140710,0.71,123.51,123.47,8.09876286]
[1766082140931,0.71,123.51,123.48,8.09840142]
[1766082141336,0.71,123.51,123.46,7.31078503]
[1766082142151,0.71,123.51,123.46,7.01078503]
[1766082142528,0.71,123.5,123.45,7.11078503]
[1766082142736,0.71,123.49,123.45,0.1]
[1766082143130,0.71,123.48,123.45,0.1]
[1766082145253,10.43767296,123.51,123.46,0.3]
[1766082145423,0.71,123.5,123.45,15.21060532]
[1766082145622,0.71,123.5,123.45,8.19982029]
[1766082146045,0.71,123.5,123.45,0.1]
[1766082146251,0.71,123.49,123.45,0.1]
[1766082146452,0.71,123.48,123.45,0.1]
[1766082147030,7.01078503,123.48,123.45,0.1]
[1766082147230,47.58541939,123.51,123.45,0.1]
[1766082147231,0.71,123.47,123.45,0.1]
[1766082147748,0.71,123.47,123.42,17.44845799]
[1766082147947,0.71,123.46,123.42,10.43767296]
[1766082148349,0.71,123.46,123.42,18.54006102]
[1766082149029,0.71,123.46,123.42,25.95084605]
[1766082149230,9.57,123.48,123.43,0.4]
[1766082149430,9.57,123.48,123.43,15.51197625]
[1766082149935,0.65,123.47,123.42,18.99980955]
[1766082150132,0.65,123.47,123.42,26.01059458]
[1766082150542,8.86,123.48,123.43,15.5722083]
[1766082150862,8.86,123.48,123.43,8.56142327]
[1766082151168,7.01078503,123.49,123.43,15.5722083]
[1766082151932,0.71,123.48,123.43,15.5722083]
[1766082152648,0.71,123.48,123.43,8.56142327]
[1766082152964,0.71,123.48,123.43,15.5722083]
[1766082153334,0.71,123.48,123.43,11.18614582]
[1766082153537,0.71,123.48,123.43,8.56142327]
[1766082155765,2.62472255,123.48,123.42,18.53977983]
[1766082155964,0.71,123.47,123.42,18.99977983]
[1766082156147,0.71,123.47,123.43,8.10173928]
[1766082157079,0.71,123.45,123.4,8.56341433]
[1766082157388,0.71,123.44,123.4,8.56341433]
[1766082157752,0.28,123.4,123.37,0.1]
[1766082157975,0.28,123.4,123.34,0.72]
[1766082157976,2.62472255,123.39,123.35,0.72]
[1766082159355,7.04212959,123.39,123.35,0.72]
[1766082159558,7.32212959,123.37,123.32,9.58]
[1766082159862,0.28,123.34,123.3,0.1]
[1766082160061,7.32212959,123.36,123.31,0.72]
[1766082160471,7.04212959,123.36,123.3,7.14212959]
[1766082160676,0.28,123.35,123.3,0.1]
[1766082160856,7.32212959,123.35,123.3,0.1]
[1766082161186,0.28,123.34,123.3,0.1]
[1766082161353,7.32212959,123.34,123.3,0.1]
[1766082161679,0.28,123.34,123.3,0.1]
[1766082161983,0.28,123.36,123.31,0.72]
[1766082162369,0.28,123.36,123.32,0.72]
[1766082162967,7.04212959,123.35,123.3,8.21023069]
[1766082163174,7.04212959,123.35,123.31,0.71]
[1766082163977,7.32212959,123.35,123.31,0.71]
[1766082164163,0.28,123.35,123.31,0.71]
[1766082164487,0.28,123.35,123.3,0.1]
[1766082164488,7.04212959,123.35,123.3,0.1]
[1766082164667,7.32212959,123.34,123.3,0.1]
[1766082164863,7.32212959,123.38,123.32,0.71]
[1766082165097,7.32212959,123.38,123.32,7.04212959]
[1766082165268,7.32212959,123.38,123.32,15.86104553]
[1766082165469,15.42722978,123.38,123.32,7.04212959]
[1766082165690,15.42722978,123.38,123.33,0.71]
[1766082165691,16.13207451,123.38,123.33,0.71]
[1766082166067,24.23719253,123.38,123.33,7.75212959]
[1766082166287,16.13207451,123.38,123.33,0.71]
[1766082166475,24.23716921,123.38,123.33,7.75212959]
[1766082167193,24.99207451,123.38,123.33,7.75212959]
[1766082167395,16.18212959,123.38,123.33,7.75212959]
[1766082167874,19.29767296,123.39,123.34,0.71]
[1766082168188,19.29767296,123.39,123.35,7.75212959]
[1766082168368,19.29767296,123.39,123.36,7.04212959]
[1766082168566,8.86,123.42,123.38,0.71]
[1766082168809,8.86,123.42,123.38,7.75212959]
[1766082169104,8.86,123.42,123.38,0.71]
[1766082169602,9.14,123.42,123.37,7.75212959]
[1766082170077,24.28467103,123.42,123.37,7.75212959]
[1766082170394,16.18212959,123.42,123.37,7.75212959]
[1766082170593,8.86,123.42,123.38,7.04212959]
[1766082170786,8.86,123.42,123.39,7.04212959]
[1766082171093,8.86,123.42,123.39,0.71]
[1766082171271,8.86,123.42,123.36,8.10580881]
[1766082171472,8.86,123.42,123.38,7.04212959]
[1766082171674,8.86,123.42,123.39,0.71]
[1766082171993,8.86,123.42,123.39,7.75212959]
[1766082172497,8.86,123.42,123.39,0.71]
[1766082172698,8.86,123.42,123.35,10.43767296]
[1766082172699,8.86,123.42,123.37,7.75212959]
[1766082173079,15.90212959,123.42,123.37,7.75212959]
[1766082173295,24.28456573,123.42,123.37,0.71]
[1766082173493,24.28456573,123.42,123.37,7.75212959]
[1766082174703,9.14,123.47,123.41,7.04212959]
[1766082174899,8.80994492,123.46,123.42,7.04212959]
[1766082175074,34.71924193,123.47,123.42,7.04212959]
[1766082175274,34.71924193,123.47,123.41,7.75212959]
[1766082175700,34.43924193,123.47,123.41,7.75212959]
[1766082175880,16.13207451,123.46,123.41,7.75212959]
[1766082176376,34.71924193,123.47,123.42,7.75212959]
[1766082176692,34.71924193,123.47,123.42,0.71]
[1766082176896,0.28,123.46,123.4,8.10365332]
[1766082177070,0.28,123.46,123.41,7.75212959]
[1766082177995,0.28,123.46,123.41,0.71]
[1766082178202,0.28,123.46,123.42,7.04212959]
[1766082178375,0.28,123.46,123.41,0.71]
[1766082178575,0.28,123.46,123.42,7.04212959]
[1766082180107,0.28,123.46,123.42,7.75212959]
[1766082180602,114.23767296,123.47,123.44,7.75212959]
[1766082180810,103.8,123.47,123.44,7.75212959]
[1766082180997,103.8,123.47,123.45,0.67]
[1766082181301,103.8,123.47,123.42,0.67]
[1766082181302,112.17913957,123.47,123.42,0.67]
[1766082181492,104.08,123.47,123.42,0.67]
[1766082181687,0.28,123.46,123.42,0.67]
[1766082182003,24.00232329,123.46,123.41,0.67]
[1766082182208,0.28,123.45,123.41,0.67]
[1766082183602,0.28,123.45,123.41,7.71212959]
[1766082184206,8.86,123.46,123.41,7.04212959]
[1766082184507,103.8,123.47,123.43,7.71212959]
[1766082184819,0.66,123.51,123.46,7.04212959]
[1766082184984,0.66,123.5,123.45,7.04212959]
[1766082185315,0.66,123.49,123.44,7.04212959]
[1766082185494,0.66,123.48,123.44,7.04212959]
[1766082185887,28.33580714,123.52,123.36,8.80994492]
[1766082185888,0.66,123.46,123.36,8.80994492]
[1766082186096,0.66,123.46,123.43,7.04212959]
[1766082186289,0.66,123.45,123.41,7.04212959]
[1766082186497,0.66,123.45,123.42,7.04212959]
[1766082187123,0.66,123.45,123.39,38.80280182]
[1766082187288,0.66,123.45,123.42,7.04212959]
[1766082187612,18.53634869,123.48,123.39,38.80280182]
[1766082187794,0.66,123.47,123.43,7.04212959]
[1766082190116,0.66,123.46,123.42,7.04212959]
[1766082191221,0.66,123.46,123.41,8.10302118]
[1766082191419,0.66,123.46,123.42,11.427979]
[1766082191619,10.43767296,123.48,123.44,11.427979]
[1766082191819,0.66,123.47,123.44,11.427979]
[1766082193017,0.66,123.47,123.43,11.427979]
[1766082193210,0.66,123.46,123.4,16.96351867]
[1766082193525,0.66,123.45,123.39,10.43767296]
[1766082193714,0.66,123.45,123.4,11.427979]
[1766082194124,0.66,123.45,123.41,11.427979]
[1766082195835,0.66,123.44,123.41,11.427979]
[1766082196495,0.66,123.44,123.39,18.54167696]
[1766082196697,0.66,123.44,123.41,11.427979]
[1766082196900,0.66,123.45,123.41,11.427979]
[1766082197931,11.427979,123.45,123.4,11.427979]
[1766082198227,0.66,123.44,123.4,11.427979]
[1766082198731,0.66,123.44,123.38,11.427979]
[1766082198732,0.66,123.42,123.38,11.427979]
[1766082198902,0.66,123.42,123.37,20.287979]
[1766082200506,0.66,123.42,123.37,8.86]
[1766082200823,0.66,123.42,123.37,20.287979]
[1766082201019,0.66,123.41,123.37,8.86]
[1766082201226,0.66,123.41,123.37,11.427979]
[1766082201425,0.66,123.41,123.38,11.427979]
[1766082201810,0.66,123.41,123.36,8.10604641]
[1766082202033,11.427979,123.4,123.34,19.29767296]
[1766082202234,0.66,123.39,123.35,11.427979]
[1766082203034,0.66,123.37,123.31,8.10931759]
[1766082203215,0.66,123.37,123.32,11.427979]
[1766082203216,0.66,123.36,123.32,11.427979]
[1766082203839,11.427979,123.36,123.31,11.427979]
[1766082204015,0.66,123.35,123.3,28.49807338]
[1766082204724,0.66,123.35,123.31,19.53757625]
[1766082205039,0.66,123.35,123.31,11.427979]
[1766082205239,0.66,123.35,123.3,20.387979]
[1766082205240,0.66,123.34,123.3,20.387979]
[1766082206038,0.66,123.34,123.3,8.96]
[1766082206233,0.66,123.34,123.3,20.387979]
[1766082206433,0.66,123.35,123.32,11.427979]
[1766082206721,0.66,123.35,123.31,11.427979]
[1766082207814,0.66,123.35,123.3,8.96]
[1766082208032,0.66,123.35,123.3,0.1]
[1766082208033,0.66,123.33,123.3,0.1]
[1766082210236,0.66,123.32,123.3,0.1]
[1766082210744,11.427979,123.32,123.27,11.427979]
[1766082210931,0.66,123.31,123.27,11.427979]
[1766082211630,11.427979,123.31,123.26,11.427979]
[1766082211828,0.66,123.32,123.27,11.427979]
[1766082212337,0.66,123.31,123.25,17.09330082]
[1766082212533,0.66,123.31,123.27,11.427979]
[1766082213447,0.66,123.31,123.25,17.0934943]
[1766082213925,0.66,123.31,123.26,11.427979]
[1766082214744,0.66,123.31,123.27,11.427979]
[1766082215326,0.66,123.31,123.28,11.427979]
[1766082215534,8.86,123.32,123.28,11.427979]
[1766082215946,0.66,123.32,123.29,11.427979]
[1766082216244,0.66,123.33,123.29,11.427979]
[1766082217738,0.66,123.33,123.29,19.53852895]
[1766082218468,0.66,123.33,123.29,11.427979]
[1766082218757,0.66,123.33,123.28,8.88]
[1766082218758,0.66,123.32,123.28,8.88]
[1766082218935,0.66,123.31,123.28,8.88]
[1766082219135,0.66,123.31,123.27,11.427979]
[1766082219357,0.66,123.32,123.28,11.427979]
[1766082220148,0.66,123.32,123.25,8.88]
[1766082220351,0.66,123.32,123.27,11.427979]
[1766082221262,0.66,123.32,123.26,8.21248951]
[1766082221263,0.66,123.3,123.26,11.427979]
[1766082222152,0.66,123.3,123.25,16.9932663]
[1766082222348,0.66,123.3,123.25,20.307979]
[1766082225163,0.69,123.28,123.25,8.88]
[1766082225464,0.69,123.27,123.24,0.1]
[1766082225670,11.427979,123.27,123.24,0.1]
[1766082225961,0.69,123.26,123.24,0.1]
[1766082226285,0.69,123.24,123.18,0.2]
[1766082226481,12.117979,123.22,123.18,0.2]
[1766082226771,0.69,123.2,123.18,0.2]
[1766082227263,31.43565196,123.19,123.16,0.2]
[1766082227446,20.00767296,123.19,123.16,0.2]
[1766082227855,8.11585782,123.22,123.17,20.24644532]
[1766082227856,0.69,123.21,123.17,20.24644532]
[1766082228261,0.69,123.21,123.17,12.127979]
[1766082228572,0.69,123.21,123.16,9.01923485]
[1766082228871,0.69,123.21,123.16,20.44741626]
[1766082229068,0.69,123.21,123.16,12.327979]
[1766082229375,0.69,123.19,123.16,0.2]
[1766082229668,0.69,123.2,123.16,0.2]
[1766082229843,0.69,123.22,123.17,0.7]
[1766082230042,0.69,123.22,123.18,0.7]
[1766082230244,12.117979,123.22,123.18,0.7]
[1766082230461,0.69,123.22,123.18,11.427979]
[1766082230655,21.86565196,123.23,123.2,11.427979]
[1766082230656,10.43767296,123.23,123.2,11.427979]
[1766082231058,11.12767296,123.23,123.2,11.427979]
[1766082231253,11.12767296,123.23,123.19,0.7]
[1766082231446,11.12767296,123.23,123.2,11.427979]
[1766082231647,0.69,123.3,123.22,11.427979]
[1766082231850,0.69,123.3,123.2,8.11680703]
[1766082231851,9.57,123.29,123.25,11.427979]
[1766082232066,9.57,123.29,123.26,11.427979]
[1766082232267,0.69,123.29,123.26,11.427979]
[1766082232479,28.37914538,123.33,123.27,11.427979]
[1766082232480,11.427979,123.32,123.27,11.427979]
[1766082232678,20.307979,123.32,123.28,12.127979]
[1766082232981,0.69,123.31,123.28,11.427979]
[1766082233289,19.31767296,123.32,123.28,11.427979]
[1766082233587,9.57,123.32,123.28,11.427979]
[1766082233961,10.43767296,123.31,123.29,11.427979]
[1766082234158,10.43767296,123.31,123.26,8.11250569]
[1766082234159,8.10724487,123.35,123.3,11.427979]
[1766082234358,9.57,123.35,123.3,0.7]
[1766082234564,8.88,123.35,123.32,11.427979]
[1766082234759,0.69,123.37,123.33,11.427979]
[1766082234990,9.57,123.38,123.34,11.427979]
[1766082235677,8.88,123.39,123.34,12.127979]
[1766082235861,9.57,123.39,123.34,12.127979]
[1766082236369,20.00767296,123.39,123.34,12.127979]
[1766082236574,31.43565196,123.39,123.34,0.7]
[1766082237163,29.03319448,123.38,123.34,0.7]
[1766082237479,0.69,123.38,123.34,12.127979]
[1766082237786,0.69,123.38,123.33,12.127979]
[1766082237988,0.69,123.38,123.34,0.7]
[1766082238887,8.79506294,123.38,123.34,0.7]
[1766082239087,0.69,123.37,123.32,12.127979]
[1766082239293,0.69,123.37,123.33,11.427979]
[1766082239458,0.69,123.37,123.32,8.8089429]
[1766082239660,0.69,123.37,123.33,11.427979]
[1766082240091,0.69,123.37,123.32,8.8089429]
[1766082240264,0.69,123.37,123.25,40.56593634]
[1766082240265,10.43767296,123.36,123.25,40.56593634]
[1766082240468,0.69,123.35,123.3,11.427979]
[1766082241291,12.117979,123.35,123.3,11.427979]
[1766082241496,24.5535671,123.4,123.33,11.427979]
[1766082241673,0.7,123.37,123.32,11.427979]
[1766082241867,0.7,123.37,123.32,12.107979]
[1766082242275,12.127979,123.37,123.32,12.107979]
[1766082243286,0.7,123.35,123.31,11.427979]
[1766082243893,0.7,123.35,123.31,12.107979]
[1766082244069,0.7,123.35,123.3,8.11022788]
[1766082244070,0.7,123.35,123.3,11.427979]
[1766082244269,11.427979,123.34,123.29,8.88]
[1766082244497,12.127979,123.31,123.26,0.68]
[1766082244795,12.127979,123.31,123.27,0.68]
[1766082244796,0.7,123.31,123.27,0.68]
[1766082245179,0.7,123.31,123.27,12.107979]
[1766082245372,10.43767296,123.35,123.31,0.68]
[1766082245574,10.43767296,123.35,123.31,12.107979]
[1766082246694,10.43767296,123.35,123.32,11.427979]
[1766082247206,10.43767296,123.35,123.31,12.107979]
[1766082247574,10.43767296,123.35,123.29,8.79066938]
[1766082247771,12.127979,123.33,123.28,12.107979]
[1766082247999,12.127979,123.33,123.28,0.68]
[1766082248205,21.007979,123.33,123.28,0.68]
[1766082248500,21.007979,123.33,123.28,12.107979]
[1766082248876,12.127979,123.36,123.3,12.107979]
[1766082249077,9.58,123.35,123.3,12.107979]
[1766082249902,9.58,123.35,123.31,11.427979]
[1766082250101,0.7,123.35,123.31,11.427979]
[1766082250296,0.7,123.33,123.28,20.21924177]
[1766082250500,12.127979,123.33,123.28,12.107979]
[1766082250704,21.007979,123.33,123.28,12.107979]
[1766082250918,21.007979,123.33,123.28,20.21942193]
[1766082251202,8.88,123.33,123.3,0.68]
[1766082251985,8.88,123.33,123.28,0.68]
[1766082251986,9.58,123.33,123.28,0.68]
[1766082252289,17.68854333,123.33,123.28,0.68]
[1766082252487,0.7,123.32,123.27,24.71952153]
[1766082252799,0.7,123.32,123.28,7.04728921]
[1766082253001,0.7,123.32,123.28,7.72728921]
[1766082253580,8.88,123.33,123.28,15.8386708]
[1766082253808,8.88,123.33,123.29,15.15820059]
[1766082254017,7.75728921,123.36,123.31,0.68]
[1766082254196,7.75728921,123.36,123.31,7.72728921]
[1766082254599,7.75728921,123.36,123.31,0.68]
[1766082254800,8.88,123.37,123.32,7.72728921]
[1766082255003,15.92728921,123.37,123.32,7.72728921]
[1766082255208,16.63728921,123.37,123.32,7.72728921]
[1766082256200,9.59,123.37,123.32,7.04728921]
[1766082256527,9.59,123.37,123.33,0.68]
[1766082257424,0.71,123.35,123.31,0.68]
[1766082257614,7.75728921,123.36,123.31,7.72728921]
[1766082257788,16.56723413,123.36,123.31,7.72728921]
[1766082258295,24.67362835,123.36,123.31,7.72728921]
[1766082259422,0.71,123.35,123.31,0.68]
[1766082260004,0.71,123.33,123.28,11.11767296]
[1766082260205,0.71,123.33,123.28,7.72728921]
[1766082260417,0.71,123.33,123.28,15.83885727]
[1766082260618,8.88,123.34,123.29,15.83809534]
[1766082260816,9.59,123.34,123.29,15.83809534]
[1766082261134,0.71,123.33,123.28,7.72728921]
[1766082261303,0.71,123.33,123.28,15.83887057]
[1766082262247,0.71,123.33,123.28,7.72728921]
[1766082262541,0.71,123.33,123.28,15.8388082]
[1766082262837,8.81857138,123.33,123.28,7.72728921]
[1766082263201,15.86586059,123.33,123.28,7.72728921]
[1766082263920,15.86586059,123.33,123.27,16.99222209]
[1766082263921,0.71,123.31,123.27,8.88]
[1766082264243,0.71,123.33,123.28,7.04728921]
[1766082264604,7.04728921,123.33,123.28,7.04728921]
[1766082264804,0.71,123.32,123.28,7.72728921]
[1766082265228,10.43767296,123.35,123.3,0.68]
[1766082265403,0.71,123.34,123.3,0.68]
[1766082265603,0.71,123.34,123.29,15.15793315]
[1766082265604,10.43767296,123.35,123.31,7.72728921]
[1766082265949,0.71,123.36,123.32,0.68]
[1766082266434,0.71,123.36,123.32,7.72728921]
[1766082267224,16.63728921,123.38,123.33,7.72728921]
[1766082267426,16.63728921,123.38,123.33,0.68]
[1766082268728,9.59,123.38,123.33,15.15547753]
[1766082269038,0.71,123.41,123.36,7.72728921]
[1766082269205,8.10241675,123.42,123.38,7.72728921]
[1766082269206,8.80994492,123.42,123.38,7.72728921]
[1766082269530,0.71,123.42,123.38,7.72728921]
[1766082270626,8.81251945,123.42,123.37,7.72728921]
[1766082270806,0.71,123.42,123.37,15.83297373]
[1766082271308,0.71,123.42,123.38,7.04728921]
[1766082271632,0.71,123.42,123.37,15.83265692]
[1766082271826,0.71,123.42,123.37,15.83294791]
[1766082272012,0.71,123.42,123.37,15.15294791]
[1766082272213,0.71,123.42,123.38,7.72728921]
[1766082273328,0.71,123.41,123.36,7.04728921]
[1766082273628,0.71,123.41,123.36,7.72728921]
[1766082273831,62.36027816,123.44,123.38,7.72728921]
[1766082273832,0.71,123.43,123.38,7.72728921]
[1766082274040,0.71,123.42,123.38,7.72728921]
[1766082274339,7.04728921,123.43,123.39,0.68]
[1766082274508,0.71,123.42,123.38,7.04728921]
[1766082275131,0.71,123.42,123.37,15.83267311]
[1766082275337,0.71,123.42,123.38,0.68]
[1766082275637,0.71,123.42,123.38,7.72728921]
[1766082275933,0.71,123.42,123.38,0.68]
[1766082276431,15.14915127,123.43,123.38,0.68]
[1766082276606,0.71,123.42,123.38,0.68]
[1766082280247,24.71864247,123.44,123.39,0.68]
[1766082280452,0.71,123.43,123.39,0.68]
[1766082281725,7.75728921,123.43,123.39,0.68]
[1766082283348,3.33733109,123.43,123.39,0.68]
[1766082283556,2.62733109,123.43,123.38,3.33733109]
[1766082283853,3.32733109,123.43,123.38,3.33733109]
[1766082285459,3.32733109,123.43,123.38,11.44213379]
[1766082285658,0.7,123.42,123.38,10.73213379]
[1766082285827,0.7,123.42,123.38,11.44213379]
[1766082286025,12.18733109,123.44,123.39,0.71]
[1766082286327,11.48733109,123.44,123.39,0.71]
[1766082286527,0.7,123.43,123.39,0.71]
[1766082286760,2.62733109,123.43,123.37,8.8153925]
[1766082286934,0.7,123.42,123.38,3.33733109]
[1766082287330,0.7,123.42,123.38,11.44212852]
[1766082288658,0.7,123.43,123.39,0.71]
[1766082289961,19.58878049,123.44,123.37,0.71]
[1766082289962,0.7,123.41,123.37,0.71]
[1766082290141,2.62733109,123.4,123.35,9.59]
[1766082290346,37.22076827,123.41,123.34,8.10755732]
[1766082290533,0.7,123.39,123.35,0.71]
[1766082291866,11.48733109,123.41,123.35,2.62733109]
[1766082292040,11.48733109,123.41,123.37,0.71]
[1766082292250,0.7,123.4,123.35,10.73411575]
[1766082292454,0.7,123.39,123.36,0.71]
[1766082292652,0.7,123.39,123.35,8.81680994]
[1766082292984,0.7,123.39,123.34,8.81754437]
[1766082293179,0.7,123.39,123.35,0.71]
[1766082294780,29.11767765,123.41,123.35,0.71]
[1766082294781,8.86,123.41,123.37,0.71]
[1766082295080,2.62733109,123.42,123.37,3.33733109]
[1766082295272,0.7,123.42,123.38,0.71]
[1766082295791,2.62733109,123.43,123.39,0.71]
[1766082295792,0.7,123.43,123.39,0.71]
[1766082295950,30.72611758,123.44,123.39,0.71]
[1766082296146,0.7,123.43,123.39,0.71]
[1766082296545,3.32733109,123.43,123.39,0.71]
[1766082296776,11.4291093,123.43,123.39,0.71]
[1766082296973,0.7,123.42,123.37,2.62733109]
[1766082297177,0.7,123.42,123.37,3.33733109]
[1766082297351,0.7,123.41,123.37,0.71]
[1766082297551,0.7,123.4,123.37,0.71]
[1766082298762,0.7,123.42,123.37,0.71]
[1766082298963,0.7,123.41,123.37,0.71]
[1766082300075,0.7,123.41,123.37,10.73293725]
[1766082300381,0.7,123.43,123.38,3.33733109]
[1766082300593,2.62733109,123.42,123.36,0.71]
[1766082300756,3.32733109,123.41,123.36,3.33733109]
[1766082301261,0.7,123.41,123.36,11.44350886]
[1766082301494,0.67,123.43,123.38,0.68]
[1766082301655,3.29733109,123.42,123.38,0.68]
[1766082301860,0.67,123.41,123.36,3.30733109]
[1766082302055,0.67,123.41,123.37,0.68]
[1766082302673,3.29733109,123.4,123.35,12.18733109]
[1766082302866,0.67,123.39,123.35,12.18733109]
[1766082303186,0.67,123.39,123.36,0.68]
[1766082303890,0.67,123.4,123.36,0.68]
[1766082304293,8.10259557,123.42,123.36,10.73323375]
[1766082304459,0.67,123.41,123.37,0.68]
[1766082305679,10.73055167,123.41,123.35,19.61409301]
[1766082305886,0.67,123.4,123.36,0.68]
[1766082306395,0.67,123.44,123.4,0.68]
[1766082306568,0.67,123.44,123.4,3.30733109]
[1766082306899,0.67,123.44,123.4,0.68]
[1766082307190,0.67,123.44,123.4,11.41096976]
[1766082307366,0.67,123.44,123.4,3.30733109]
[1766082307689,0.67,123.44,123.4,11.41104018]
[1766082308197,0.87,123.46,123.42,0.68]
[1766082308360,0.87,123.46,123.42,3.30733109]
[1766082308563,0.2,123.46,123.45,0.68]
[1766082308777,0.2,123.48,123.45,3.30733109]
[1766082308972,0.2,123.48,123.45,0.68]
[1766082309179,0.67,123.46,123.41,3.30733109]
[1766082309493,33.17777205,123.48,123.41,0.68]
[1766082309494,0.67,123.45,123.41,0.68]
[1766082309996,0.67,123.44,123.4,0.68]
[1766082310462,8.86,123.46,123.39,11.50733109]
[1766082310661,3.29733109,123.44,123.39,12.18733109]
[1766082310864,3.29733109,123.44,123.38,18.54251449]
[1766082310865,0.67,123.42,123.38,0.68]
[1766082311089,3.29733109,123.42,123.38,0.68]
[1766082311386,0.67,123.42,123.38,0.68]
[1766082311776,0.67,123.41,123.36,4.78556616]
[1766082311984,0.67,123.4,123.35,12.89221577]
[1766082312170,0.67,123.4,123.35,8.78664961]
[1766082312488,4.77556616,123.4,123.35,4.78556616]
[1766082313285,0.67,123.4,123.35,12.89254831]
[1766082313489,0.67,123.4,123.35,20.22783717]
[1766082313862,0.67,123.4,123.35,12.12085502]
[1766082314088,12.11085502,123.4,123.35,12.12085502]
[1766082314292,19.54477233,123.4,123.35,0.68]
[1766082314495,0.68,123.36,123.31,20.2401677]
[1766082314787,0.68,123.36,123.32,0.69]
[1766082315093,0.68,123.37,123.32,12.13085502]
[1766082315791,12.12085502,123.37,123.32,12.13085502]
[1766082316386,0.68,123.34,123.29,8.86]
[1766082316566,0.68,123.34,123.3,12.13085502]
[1766082316963,12.12085502,123.36,123.31,20.2401497]
[1766082317270,0.68,123.35,123.31,20.2401497]
[1766082317475,0.68,123.35,123.31,0.69]
[1766082317903,0.68,123.32,123.28,0.69]
[1766082318100,0.68,123.34,123.29,11.44085502]
[1766082318298,0.68,123.34,123.3,8.80024926]
[1766082318601,0.68,123.34,123.3,20.24110428]
[1766082321004,19.97767296,123.36,123.31,0.69]
[1766082321303,0.68,123.34,123.29,21.01085502]
[1766082321503,11.44085502,123.34,123.29,9.57]
[1766082321707,12.12085502,123.33,123.29,9.57]
[1766082321881,0.68,123.33,123.29,8.88]
[1766082322082,0.68,123.31,123.27,21.87852798]
[1766082322292,0.68,123.34,123.29,0.69]
[1766082322492,12.12085502,123.34,123.29,8.80092669]
[1766082322728,0.68,123.34,123.3,0.69]
[1766082324022,12.12085502,123.34,123.3,0.69]
[1766082324327,0.68,123.34,123.3,0.69]
[1766082324835,0.68,123.35,123.3,20.24112417]
[1766082325125,0.68,123.34,123.29,8.8006565]
[1766082325421,0.68,123.34,123.29,20.24151152]
[1766082325608,0.68,123.34,123.3,0.69]
[1766082325793,0.68,123.34,123.3,8.8001484]